bitfinex-derivatives/quotes_ETHF0:USTF0_20250612
["timestamp","ask_amount","ask_price","bid_price","bid_amount"]
[1749741094653,6.70426,2772.4,2772.3,0.72670028]
[1749741095257,6.70426,2772.4,2772.3,0.00541028]
[1749741097256,6.70426,2772.4,2772.3,0.72670028]
[1749741097447,6.70426,2772.4,2772.3,0.00541028]
[1749741097647,0.72126,2772.4,2772.3,0.00541028]
[1749741097855,29.14926,2772.4,2772.3,0.72670028]
[1749741098258,29.14926,2772.4,2772.3,0.00541028]
[1749741098658,29.14926,2772.4,2772.3,0.72670028]
[1749741098859,29.14926,2772.4,2772.3,0.00541028]
[1749741099457,0.72142,2771.9,2771.8,0.7214]
[1749741101052,0.72142,2771.9,2771.6,0.59161028]
[1749741101053,7.78644,2772.0,2771.6,0.00541028]
[1749741101363,0.72144,2771.7,2771.6,0.00541028]
[1749741102062,0.72144,2771.7,2771.6,0.72688028]
[1749741103262,23.16444,2771.9,2771.8,0.72142]
[1749741103562,29.08741,2771.9,2771.8,0.72142]
[1749741104269,0.72144,2771.8,2771.7,0.72142]
[1749741104464,0.72144,2771.7,2771.6,0.72686028]
[1749741105666,0.72144,2771.8,2771.7,0.72142]
[1749741106575,0.72144,2771.7,2771.6,0.72685028]
[1749741107069,0.72144,2771.7,2771.6,0.00541028]
[1749741108870,0.7216,2771.2,2771.0,1.1865]
[1749741109179,0.7216,2771.2,2771.1,0.72159]
[1749741109473,23.14357,2771.3,2771.2,0.72157]
[1749741109673,22.422,2771.3,2770.8,1.80419]
[1749741109874,22.42741028,2771.3,2770.8,2.99610028]
[1749741110075,0.7216,2771.2,2771.1,0.72158]
[1749741110472,23.14898028,2771.3,2771.2,0.72157]
[1749741111380,22.42741028,2771.3,2771.2,0.72157]
[1749741111566,6.65647,2771.7,2771.6,0.72144]
[1749741111769,29.08047,2771.7,2771.6,0.72144]
[1749741112370,5.935,2771.7,2771.6,0.72144]
[1749741113278,6.65644,2771.7,2771.6,0.72144]
[1749741113672,0.72144,2771.7,2771.6,0.72144]
[1749741115274,24.22757,2771.8,2771.4,2.3843]
[1749741115477,0.72149,2771.5,2771.4,2.3843]
[1749741116178,0.72149,2771.5,2771.4,3.10582]
[1749741118579,22.424,2771.8,2771.4,2.3843]
[1749741118778,22.424,2771.8,2770.8,0.00541028]
[1749741118980,0.72161,2771.2,2771.1,0.72158]
[1749741119179,0.72162,2771.0,2770.9,2.63384]
[1749741119480,0.72162,2771.0,2770.9,2.63385]
[1749741120072,30.16288,2771.3,2770.9,2.63385]
[1749741120073,29.08057,2771.3,2771.2,0.72157]
[1749741120581,0.72157,2771.3,2771.2,0.72157]
[1749741120782,0.72157,2771.3,2770.9,1.9122]
[1749741120783,0.72162,2771.1,2771.0,0.72161]
[1749741120975,0.72162,2771.0,2770.9,2.63383]
[1749741121876,0.72162,2771.1,2771.0,0.7216]
[1749741122176,0.72162,2771.1,2771.0,1.996]
[1749741123983,0.72159,2771.2,2771.1,0.72157]
[1749741124383,0.72156,2771.3,2771.2,0.72157]
[1749741124784,6.65656,2771.3,2771.2,0.72157]
[1749741125087,0.72148,2771.6,2771.5,0.72146]
[1749741126285,0.72148,2771.6,2771.5,1.93086]
[1749741127085,7.73857,2771.8,2771.6,0.72144]
[1749741127086,0.72147,2771.7,2771.6,0.72144]
[1749741127274,0.72147,2771.6,2771.5,1.93088]
[1749741128279,0.72146,2771.7,2771.6,0.72144]
[1749741128684,0.72146,2771.7,2771.5,1.2094]
[1749741128685,6.65644,2771.8,2771.7,0.72144]
[1749741128879,28.361,2771.8,2771.7,0.72144]
[1749741129288,0.00541028,2771.9,2771.8,0.72142]
[1749741131085,0.72144,2771.7,2771.6,0.5855]
[1749741132384,0.72144,2771.7,2771.6,0.72147]
[1749741132687,0.72165,2770.9,2770.4,11.09941221]
[1749741132988,0.72165,2770.9,2770.5,0.72173]
[1749741133187,0.72165,2770.9,2770.6,0.72172]
[1749741133591,0.72165,2770.9,2770.4,2.4891]
[1749741133884,0.72165,2770.9,2769.9,6.83159543]
[1749741133885,0.72186,2770.1,2769.9,8.61031221]
[1749741134182,1.80438,2770.6,2770.1,0.72186]
[1749741134386,0.72185,2770.2,2769.8,7.1089]
[1749741134583,0.72185,2770.2,2770.1,0.72186]
[1749741135090,0.72720028,2770.4,2770.3,0.72181]
[1749741135692,0.72182,2770.3,2770.2,0.72182]
[1749741136389,0.72721028,2770.4,2770.3,0.72181]
[1749741136691,0.00541028,2770.4,2770.3,0.72181]
[1749741138782,0.72183,2770.3,2770.2,0.72182]
[1749741138988,0.72183,2770.2,2770.1,1.90575]
[1749741139290,0.72188,2770.0,2769.9,0.00541028]
[1749741139690,23.15688,2770.1,2769.9,0.00541028]
[1749741139995,23.15688,2770.1,2770.0,0.72188]
[1749741140290,22.435,2770.1,2770.0,0.72188]
[1749741140694,23.15686,2770.1,2770.0,0.72188]
[1749741141290,0.72188,2770.0,2769.9,0.72730028]
[1749741141489,0.72188,2770.0,2769.9,0.00541028]
[1749741142088,1.96628,2770.0,2769.9,0.00541028]
[1749741143495,29.08188,2770.0,2769.9,0.72732028]
[1749741144391,0.5902,2770.3,2769.9,0.00541028]
[1749741144594,5.927,2770.2,2770.1,0.72183]
[1749741144892,28.36,2770.2,2770.1,0.72183]
[1749741145195,5.927,2770.2,2770.1,0.72183]
[1749741145592,0.00541028,2770.4,2770.3,0.72181]
[1749741146797,0.72719028,2770.4,2770.3,0.72181]
[1749741147493,0.00541028,2770.4,2770.0,1.1826]
[1749741147692,0.72188,2770.0,2769.9,0.00541028]
[1749741147892,23.15588,2770.0,2769.9,0.72732028]
[1749741148587,23.15588,2770.0,2769.9,0.00541028]
[1749741149495,5.93241028,2770.4,2770.1,1.80465]
[1749741149794,0.72719028,2770.4,2770.3,0.72181]
[1749741150298,0.72720028,2770.4,2770.3,0.72181]
[1749741150691,0.72183,2770.3,2770.2,0.72181]
[1749741150892,23.19383,2770.3,2770.2,0.72181]
[1749741151589,22.472,2770.3,2770.2,0.72181]
[1749741152796,23.19381,2770.3,2770.2,0.72181]
[1749741153495,0.00541028,2770.4,2770.3,0.72181]
[1749741153895,5.927,2771.2,2770.9,0.72165]
[1749741154100,1.44212,2771.0,2770.9,0.72165]
[1749741154496,0.72167,2770.9,2770.8,0.72166]
[1749741154994,1.44214,2771.0,2770.9,0.72165]
[1749741159396,0.72169,2770.9,2770.8,0.72167]
[1749741159598,0.72173,2770.7,2770.6,0.7217]
[1749741159900,0.72167,2770.9,2770.8,0.72165]
[1749741160091,23.16567,2770.9,2770.8,0.72165]
[1749741160695,0.7217,2770.8,2770.7,0.72168]
[1749741161196,0.72171,2770.8,2770.5,1.1705]
[1749741161404,0.72173,2770.7,2770.6,0.72171]
[1749741161797,24.24814,2770.9,2770.1,3.02685]
[1749741161798,0.72178,2770.5,2770.4,0.72176]
[1749741162001,23.15978,2770.5,2770.4,0.72176]
[1749741162191,22.438,2770.5,2770.4,0.72176]
[1749741162502,22.439,2770.5,2770.3,1.80452]
[1749741162702,22.439,2770.5,2770.4,0.72178]
[1749741162900,22.439,2770.5,2770.4,2.01428]
[1749741163301,0.00541028,2771.1,2770.9,0.72165]
[1749741164005,0.72701028,2771.1,2771.0,0.72162]
[1749741164299,0.00541028,2771.1,2771.0,0.72162]
[1749741166197,0.72701028,2771.1,2771.0,0.72162]
[1749741169002,0.72703028,2771.1,2771.0,0.72162]
[1749741169201,0.72701028,2771.1,2771.0,0.72162]
[1749741171303,0.00541028,2771.1,2771.0,0.72162]
[1749741172608,0.72701028,2771.1,2771.0,0.72162]
[1749741173804,0.00541028,2771.1,2771.0,0.72162]
[1749741174910,22.43641028,2771.1,2771.0,0.72162]
[1749741175206,0.72701028,2771.1,2771.0,0.72162]
[1749741175408,23.15801028,2771.1,2771.0,0.72162]
[1749741175912,1.80413,2771.0,2770.4,1.80445]
[1749741176104,0.72175,2770.6,2770.5,0.72172]
[1749741176310,23.15175,2770.6,2770.5,0.72172]
[1749741176515,22.43,2770.6,2770.5,0.72172]
[1749741177205,23.15173,2770.6,2770.5,0.72172]
[1749741178919,22.43,2770.6,2770.5,0.72172]
[1749741179221,23.15173,2770.6,2770.5,0.72172]
[1749741179409,22.43,2770.6,2770.5,0.72172]
[1749741180914,23.15173,2770.6,2770.5,0.72172]
[1749741181114,22.43,2770.6,2770.5,0.72172]
[1749741182315,22.43,2770.6,2770.3,1.2642]
[1749741182509,0.72178,2770.4,2770.3,1.36437]
[1749741182717,0.72177,2770.5,2770.4,0.72175]
[1749741183010,22.43,2770.6,2769.5,8.61031221]
[1749741183011,0.72188,2770.0,2769.5,8.61031221]
[1749741183318,1.80494,2769.7,2769.2,1.8605]
[1749741183516,0.72207,2769.3,2769.2,1.30718]
[1749741183720,31.9901,2769.6,2768.9,0.6116]
[1749741183913,31.9901,2769.6,2768.7,9.88571221]
[1749741183914,0.72218,2768.9,2768.7,1.8605]
[1749741184219,7.74005,2769.5,2768.7,2.58271]
[1749741184220,22.432,2769.0,2768.7,2.58271]
[1749741184515,0.7222,2768.8,2768.5,0.61701028]
[1749741184712,22.432,2769.0,2768.5,0.61701028]
[1749741184713,0.72225,2768.6,2768.5,0.00541028]
[1749741184915,23.15425,2768.6,2768.5,0.00541028]
[1749741187711,23.15425,2768.6,2768.5,0.72769028]
[1749741187712,22.436,2768.6,2768.5,0.72769028]
[1749741188322,23.16754028,2769.1,2768.9,0.72215]
[1749741188615,0.72224,2768.7,2768.5,0.00541028]
[1749741188815,23.18124,2768.7,2768.6,0.72225]
[1749741189015,28.396,2768.7,2768.6,0.72225]
[1749741190517,0.72225,2768.6,2768.5,0.72767028]
[1749741190710,29.11824,2768.7,2768.5,0.00541028]
[1749741190917,29.11823,2768.7,2768.6,0.72225]
[1749741191117,28.396,2768.7,2768.6,0.72225]
[1749741191321,29.11822,2768.7,2768.6,0.72225]
[1749741191522,28.396,2768.7,2768.6,0.72225]
[1749741191716,29.11822,2768.7,2768.6,0.72225]
[1749741192618,28.396,2768.7,2768.6,0.72225]
[1749741192816,29.11822,2768.7,2768.6,0.72225]
[1749741193217,28.396,2768.7,2768.6,0.72225]
[1749741193928,29.11822,2768.7,2768.6,0.72225]
[1749741195216,28.396,2768.7,2768.6,0.72225]
[1749741195526,28.396,2768.7,2768.2,1.80586]
[1749741195527,0.72238,2768.2,2768.0,0.72239]
[1749741195728,22.445,2768.1,2768.0,0.72239]
[1749741195922,23.16738,2768.1,2768.0,0.72239]
[1749741196523,0.72243,2767.9,2767.8,0.72786028]
[1749741196720,22.445,2767.9,2767.8,0.72786028]
[1749741196923,23.16743,2767.9,2767.8,0.72786028]
[1749741198327,23.16743,2767.9,2767.8,0.00541028]
[1749741198533,30.935392,2767.9,2766.9,0.72269]
[1749741198724,3.2078,2767.3,2766.9,1.2107]
[1749741198919,0.72267,2767.0,2766.9,1.2107]
[1749741199126,3.2078,2767.0,2766.6,4.4597]
[1749741199328,0.72275,2766.7,2766.6,1.97466]
[1749741199725,22.45642035,2766.9,2766.6,1.97466]
[1749741199726,0.72273,2766.8,2766.7,0.72273]
[1749741199925,0.72275,2766.7,2766.6,1.2519]
[1749741200426,3.93055,2766.7,2766.6,1.97467]
[1749741201031,25.6608,2766.7,2766.6,1.97467]
[1749741201332,22.453,2766.7,2766.6,1.97467]
[1749741202025,23.17575,2766.7,2766.6,1.97467]
[1749741202226,0.7228,2766.6,2766.5,0.72279]
[1749741202627,0.7228,2766.6,2766.4,1.21612035]
[1749741202628,0.7228,2766.5,2766.4,1.93893035]
[1749741203028,0.72279,2766.6,2766.5,0.72278]
[1749741204331,25.6608,2766.7,2766.6,0.72277]
[1749741204631,3.2078,2766.7,2766.6,0.72277]
[1749741205431,0.00542035,2766.9,2766.8,0.72272]
[1749741206229,0.00542035,2766.9,2766.8,2.59872]
[1749741206729,0.72811035,2766.9,2766.8,1.876]
[1749741206935,0.72272,2766.8,2766.7,1.34583]
[1749741208033,0.72814035,2766.9,2766.8,0.72272]
[1749741208331,0.00542035,2766.9,2766.8,0.72272]
[1749741208530,0.00542035,2766.9,2766.8,1.91272]
[1749741209033,0.72811035,2766.9,2766.8,1.91272]
[1749741210023,0.00542035,2766.9,2766.7,0.6231]
[1749741210228,0.72813035,2766.9,2766.8,0.72272]
[1749741211031,0.00542035,2766.9,2766.8,0.72272]
[1749741211232,0.00542035,2766.9,2766.8,1.90132]
[1749741211934,23.18711035,2766.9,2766.8,1.90132]
[1749741212738,23.18711035,2766.9,2766.8,0.72272]
[1749741213034,22.46442035,2766.9,2766.8,0.72272]
[1749741213233,22.46442035,2766.9,2766.8,2.01132]
[1749741214436,23.18711035,2766.9,2766.8,2.0733372]
[1749741214635,22.46442035,2766.9,2766.8,2.0733372]
[1749741214835,0.00542035,2766.9,2766.8,2.0733372]
[1749741215031,0.43902035,2766.9,2766.8,7.7110372]
[1749741215229,0.43902035,2766.9,2766.8,2.7110372]
[1749741215542,0.43902035,2766.9,2766.8,2.64902]
[1749741216536,3.2078,2767.5,2766.8,12.8613]
[1749741216735,3.2078,2767.9,2767.8,0.72246]
[1749741217339,0.72254,2767.6,2767.5,0.7225]
[1749741217538,0.72789035,2767.8,2767.7,0.72248]
[1749741217732,23.21889035,2767.8,2767.7,0.72248]
[1749741218440,0.72251,2767.7,2767.6,0.72249]
[1749741218642,0.72254,2767.6,2767.5,0.72252]
[1749741221239,22.49642035,2767.8,2767.6,0.72248]
[1749741221240,0.7225,2767.7,2767.6,0.72248]
[1749741221444,0.7225,2767.7,2767.4,1.7889]
[1749741221445,0.72789035,2767.8,2767.7,0.72248]
[1749741221634,23.19589035,2767.8,2767.7,0.72248]
[1749741222244,0.00542035,2767.8,2767.7,0.72248]
[1749741228465,5.934,2768.2,2768.1,0.72238]
[1749741228954,3.2078,2768.3,2768.2,0.72235]
[1749741229952,3.93013,2768.3,2768.2,0.72235]
[1749741230544,3.2078,2768.3,2768.0,0.6479]
[1749741230754,0.72242,2768.1,2768.0,0.72238]
[1749741231051,0.72237,2768.2,2768.1,0.72235]
[1749741231451,4.3935,2768.3,2768.0,0.72239]
[1749741231452,0.72243,2768.1,2768.0,0.72239]
[1749741231954,0.72237,2768.2,2768.1,0.72235]
[1749741233246,3.93015,2768.3,2768.2,0.72235]
[1749741233652,25.6618,2768.3,2768.2,0.72235]
[1749741233946,26.38413,2768.3,2768.2,0.72235]
[1749741234548,26.38413,2768.3,2767.7,3.2078]
[1749741234549,1.80596,2768.1,2767.4,5.01418]
[1749741234744,0.72252,2767.7,2767.6,0.72248]
[1749741235644,0.72247,2767.8,2767.7,0.72246]
[1749741235847,27.01274,2767.9,2767.8,0.72246]
[1749741236451,23.17644,2767.9,2767.8,0.72246]
[1749741236851,0.72251,2767.7,2767.6,0.72249]
[1749741239855,0.72254,2767.5,2767.4,0.72254]
[1749741240151,0.72256,2767.4,2767.3,0.72801035]
[1749741242258,0.72256,2767.4,2767.3,0.00542035]
[1749741243358,0.72256,2767.4,2767.3,0.72801035]
[1749741243554,0.72256,2767.4,2767.3,0.00542035]
[1749741243856,0.72267,2767.0,2766.9,0.72269]
[1749741246861,9.1408,2767.1,2767.0,0.72267]
[1749741247161,31.5978,2767.1,2767.0,0.72267]
[1749741247359,32.32044,2767.1,2767.0,0.72267]
[1749741247561,0.72269,2767.0,2766.9,0.72267]
[1749741248060,32.32047,2767.1,2767.0,0.72267]
[1749741248247,25.6648,2767.1,2767.0,0.72267]
[1749741248457,22.457,2767.1,2767.0,0.72267]
[1749741248651,0.72264,2767.2,2767.1,0.72264]
[1749741248862,29.11464,2767.2,2767.1,0.72264]
[1749741249060,0.72269,2767.0,2766.9,0.72266]
[1749741250858,0.72269,2766.9,2766.8,2.60061]
[1749741251063,0.72269,2766.9,2766.8,0.72272]
[1749741252160,23.18069,2766.9,2766.8,0.72272]
[1749741252463,0.72272,2766.8,2766.7,0.72816035]
[1749741253952,3.93052,2766.8,2766.7,0.00542035]
[1749741255063,9.86452,2766.8,2766.7,0.72817035]
[1749741255266,9.86452,2766.8,2766.7,0.00542035]
[1749741255867,3.21322035,2767.1,2766.9,0.72267]
[1749741256165,3.21322035,2767.1,2767.0,0.72267]
[1749741257954,0.00542035,2767.1,2767.0,0.72267]
[1749741259264,0.00542035,2767.1,2767.0,0.7846872]
[1749741260467,0.00542035,2767.1,2767.0,3.9924872]
[1749741261067,0.00542035,2767.1,2767.0,0.7846872]
[1749741262266,0.00542035,2767.1,2767.0,3.9924872]
[1749741262865,9.1408,2767.7,2767.6,0.72251]
[1749741263269,9.86328,2767.7,2767.6,0.72251]
[1749741263467,9.1408,2767.7,2767.6,0.72251]
[1749741263671,9.86328,2767.7,2767.6,0.72251]
[1749741263867,9.1408,2767.7,2767.6,0.72251]
[1749741264271,9.86328,2767.7,2767.6,0.72251]
[1749741272583,9.1408,2767.7,2767.6,0.72251]
[1749741272782,9.86328,2767.7,2767.6,0.72251]
[1749741278393,0.72256,2767.5,2767.4,0.72254]
[1749741279790,23.17156,2767.5,2767.4,0.72254]
[1749741280783,0.72261,2767.3,2767.2,0.72257]
[1749741281290,0.72258,2767.4,2767.3,0.72256]
[1749741281883,3.93038,2767.4,2767.3,0.72256]
[1749741283587,0.72261,2767.3,2767.2,0.7226]
[1749741283795,0.72265,2767.2,2767.1,0.7226]
[1749741283984,23.16965,2767.2,2767.1,0.7226]
[1749741284784,4.4776,2767.4,2767.3,0.72259]
[1749741284983,4.4776,2767.4,2767.2,0.7226]
[1749741284984,0.72262,2767.3,2767.2,0.7226]
[1749741286296,0.72266,2767.2,2767.1,0.72262]
[1749741286891,0.72269,2767.0,2766.9,0.72265]
[1749741287095,29.09869,2767.0,2766.9,0.72265]
[1749741288396,0.72272,2766.9,2766.8,0.7227]
[1749741288995,0.72269,2767.0,2766.9,0.72267]
[1749741289197,29.09769,2767.0,2766.9,0.72267]
[1749741289400,29.09769,2767.0,2766.7,1.81227035]
[1749741289401,28.375,2767.0,2766.7,0.00542035]
[1749741289701,1.36601,2766.9,2766.8,0.7847372]
[1749741295305,0.6433,2766.9,2766.8,0.7847372]
[1749741295494,28.375,2767.0,2766.9,0.72269]
[1749741296397,29.09767,2767.0,2766.9,0.72269]
[1749741296596,28.375,2767.0,2766.9,0.72269]
[1749741297001,29.09767,2767.0,2766.9,0.72269]
[1749741300008,0.72269,2766.9,2766.8,0.0620172]
[1749741300708,0.72272,2766.8,2766.7,0.00542035]
[1749741300899,23.16872,2766.8,2766.7,0.00542035]
[1749741301702,24.46052,2766.8,2766.7,0.00542035]
[1749741302004,0.7229,2766.1,2766.0,0.5993]
[1749741302202,0.72293,2766.0,2765.9,0.72294]
[1749741302504,22.446,2766.1,2766.0,0.72293]
[1749741302505,23.16893,2766.1,2766.0,0.72293]
[1749741303107,0.72293,2766.0,2765.9,2.01774]
[1749741303706,1.15673,2766.0,2765.9,2.01774]
[1749741303907,0.4338,2766.0,2765.9,2.01774]
[1749741304409,1.15673,2766.0,2765.9,2.01774]
[1749741304712,0.72295,2765.9,2765.8,0.62432035]
[1749741304906,23.17095,2765.9,2765.8,0.62432035]
[1749741305206,0.00542035,2766.3,2765.9,3.93075]
[1749741305403,3.2078,2767.1,2767.0,0.72267]
[1749741306699,3.93044,2767.1,2767.0,0.72267]
[1749741306906,0.72278,2766.6,2766.3,3.2078]
[1749741307203,23.16976,2766.7,2766.6,0.72277]
[1749741307402,0.72279,2766.6,2766.5,0.72278]
[1749741307698,23.16976,2766.7,2766.6,0.72277]
[1749741307910,0.72277,2766.6,2766.5,1.94057]
[1749741308298,22.447,2766.7,2766.4,0.6128]
[1749741308299,0.7228,2766.5,2766.4,0.6128]
[1749741308699,0.72279,2766.6,2766.5,0.72278]
[1749741309112,0.7228,2766.5,2766.4,0.6128]
[1749741309410,5.929,2766.5,2766.2,1.2178]
[1749741309710,22.446,2766.4,2766.2,1.2178]
[1749741309902,0.72285,2766.3,2766.2,1.2178]
[1749741310306,0.72285,2766.3,2766.2,1.94068]
[1749741310507,0.72285,2766.3,2766.2,1.2178]
[1749741311405,0.72288,2766.2,2766.1,0.5894]
[1749741312110,0.72288,2766.2,2766.1,1.7668]
[1749741312811,0.7229,2766.1,2766.0,0.5949]
[1749741313111,23.1679,2766.1,2766.0,0.5949]
[1749741313413,29.0979,2766.1,2766.0,0.5949]
[1749741313911,1.80696,2766.6,2766.2,0.72285]
[1749741313912,1.80697,2766.6,2766.2,0.72285]
[1749741314111,0.72288,2766.3,2766.2,0.72285]
[1749741314310,29.09888,2766.3,2766.2,0.72285]
[1749741315209,1.80685,2766.8,2766.0,3.64382]
[1749741315514,0.72279,2766.6,2766.5,0.72277]
[1749741315708,23.16879,2766.6,2766.5,0.72277]
[1749741315915,0.72283,2766.5,2766.4,0.72281]
[1749741316713,0.72283,2766.5,2766.4,1.91841]
[1749741318813,0.72283,2766.5,2766.4,1.1956]
[1749741319111,0.72282,2766.4,2766.3,1.35255]
[1749741319506,6.64581,2766.5,2766.4,0.72279]
[1749741319709,29.08981,2766.5,2766.4,1.92219]
[1749741320111,28.367,2766.5,2766.4,1.92219]
[1749741320707,5.923,2766.5,2766.4,1.92219]
[1749741321310,5.923,2766.5,2766.4,1.9842072]
[1749741323711,6.64573,2766.8,2766.7,0.72275]
[1749741323918,31.5728,2766.8,2766.7,0.72275]
[1749741324115,28.365,2766.8,2766.7,1.92425]
[1749741324617,29.08772,2766.8,2766.7,1.92425]
[1749741324817,28.365,2766.8,2766.7,1.92425]
[1749741325413,3.2078,2767.1,2767.0,0.72267]
[1749741325613,0.72262,2767.2,2767.1,0.72261]
[1749741325911,5.92842035,2767.3,2767.2,1.36621]
[1749741326311,0.00542035,2767.3,2767.2,1.36621]
[1749741328418,0.00542035,2767.3,2767.2,2.59731]
[1749741329118,3.2078,2767.8,2767.7,0.72248]
[1749741329307,25.6478,2767.8,2767.7,0.72248]
[1749741329910,25.6478,2767.8,2767.7,2.50848]
[1749741330718,3.2078,2767.8,2767.7,2.50848]
[1749741330920,0.00542035,2768.0,2767.9,0.72243]
[1749741331614,0.00542035,2768.0,2767.9,1.90233]
[1749741338521,3.2078,2768.9,2768.8,0.7222]
[1749741339322,3.92997,2768.9,2768.8,0.7222]
[1749741339820,0.72222,2768.8,2768.7,0.7222]
[1749741340019,3.92999,2768.9,2768.8,0.7222]
[1749741340219,3.2078,2768.9,2768.8,0.7222]
[1749741341126,3.92997,2768.9,2768.8,0.7222]
[1749741341328,3.2078,2768.9,2768.7,0.72221]
[1749741341521,0.72225,2768.6,2768.5,0.72228]
[1749741341829,0.6224,2768.8,2768.7,0.72222]
[1749741342427,3.2078,2768.9,2768.8,0.7222]
[1749741343329,3.2078,2768.9,2768.8,2.5925]
[1749741345229,0.00540356,2769.1,2769.0,0.72214]
[1749741347023,0.72217,2768.9,2768.8,0.6177]
[1749741347223,3.2078,2769.0,2768.9,0.72217]
[1749741347429,0.00540356,2769.1,2769.0,0.72214]
[1749741347729,0.72752356,2769.1,2769.0,0.72214]
[1749741348125,0.00540356,2769.1,2769.0,0.72214]
[1749741348725,0.00540356,2769.1,2769.0,1.99584]
[1749741349217,3.56e-06,2769.1,2769.0,1.99584]
[1749741349425,3.56e-06,2769.1,2769.0,6.99584]
[1749741350418,3.92956,2770.5,2770.4,0.72178]
[1749741351224,3.2078,2770.5,2770.4,0.72178]
[1749741352530,3.92955,2770.5,2770.4,0.72178]
[1749741353523,3.2078,2770.8,2770.7,0.72169]
[1749741353726,0.72161,2771.0,2770.5,3.2078]
[1749741353925,4.4364,2771.1,2771.0,0.72161]
[1749741354228,4.4364,2771.1,2770.5,6.20333]
[1749741354432,0.72162,2771.0,2770.9,0.72161]
[1749741355023,4.4364,2771.1,2771.0,0.72161]
[1749741355232,3.92938,2771.1,2771.0,0.72161]
[1749741356130,3.2078,2771.1,2770.5,4.399]
[1749741356426,0.72163,2771.0,2770.9,0.72162]
[1749741356630,3.9294,2771.1,2770.7,0.72168]
[1749741357436,0.72161,2771.0,2770.7,0.72168]
[1749741358229,3.9294,2771.1,2770.8,0.72166]
[1749741358432,3.2078,2771.1,2771.0,0.72161]
[1749741358635,3.2078,2771.4,2771.1,0.72157]
[1749741358839,0.72157,2771.2,2771.0,0.6476]
[1749741359032,0.72157,2771.2,2771.0,1.3692]
[1749741359337,3.2078,2771.4,2771.0,0.6476]
[1749741359536,0.72158,2771.1,2771.0,0.6476]
[1749741359743,1.8041,2770.9,2770.4,0.6048]
[1749741360039,0.72174,2770.6,2770.4,1.32655]
[1749741360233,0.72174,2770.5,2770.4,0.6048]
[1749741360427,0.72177,2770.4,2770.3,5.909]
[1749741360633,1.80429,2770.6,2770.2,3.21322035]
[1749741360835,0.72179,2770.3,2770.2,0.00542035]
[1749741363630,0.72195,2769.7,2769.6,1.2559]
[1749741363827,3.2078,2769.8,2769.4,0.72202]
[1749741364029,0.722,2769.5,2769.4,0.72202]
[1749741364230,0.72199,2769.6,2769.5,0.72198]
[1749741364627,5.01807035,2769.8,2769.3,1.1851]
[1749741364832,5.01807035,2769.8,2769.3,1.91255035]
[1749741364833,0.72203,2769.4,2769.3,1.91255035]
[1749741365242,0.72203,2769.4,2769.3,0.00542035]
[1749741370040,1.95813,2769.4,2769.3,0.00542035]
[1749741371036,0.2483,2769.7,2769.3,0.00542035]
[1749741371348,0.72199,2769.6,2769.5,0.72197]
[1749741372445,0.72199,2769.6,2769.3,0.00542035]
[1749741372446,0.72203,2769.4,2769.3,0.00542035]
[1749741372647,9.83983,2769.4,2769.3,0.00542035]
[1749741376946,0.72218,2768.8,2768.7,0.6243]
[1749741377150,0.72229,2768.5,2768.4,0.72226]
[1749741377445,0.72234,2768.2,2768.1,0.6209]
[1749741377641,3.2078,2768.5,2768.1,1.34325]
[1749741377842,5.905,2768.7,2768.5,0.72224]
[1749741378050,0.00542035,2768.6,2768.2,1.1726]
[1749741378248,0.72231,2768.4,2768.3,0.72229]
[1749741378741,0.72228,2768.5,2768.4,0.72226]
[1749741379344,0.72234,2768.3,2768.2,0.72233]
[1749741379747,0.72231,2768.4,2768.3,0.72229]
[1749741380646,0.72234,2768.3,2768.2,0.72232]
[1749741380849,5.01347,2768.5,2768.1,1.849]
[1749741380850,0.72234,2768.2,2768.1,1.849]
[1749741381049,0.72237,2768.1,2768.0,0.00542035]
[1749741381746,1.36957,2768.1,2768.0,0.00542035]
[1749741381947,1.80605,2767.9,2767.4,0.5963]
[1749741382251,1.80599,2768.0,2767.2,0.623]
[1749741382252,10.91994,2767.8,2767.2,0.623]
[1749741382455,0.72257,2767.3,2767.2,1.34558]
[1749741382664,0.72257,2767.4,2767.3,0.72255]
[1749741383058,3.93034,2767.5,2767.4,0.72255]
[1749741383962,3.2078,2767.5,2767.4,0.72255]
[1749741385968,3.93032,2767.5,2767.4,0.72255]
[1749741386163,3.93032,2767.5,2767.3,1.2281]
[1749741386164,0.72255,2767.4,2767.3,0.72257]
[1749741386669,0.72257,2767.3,2767.2,1.3456]
[1749741386871,0.7226,2767.2,2767.1,0.60172035]
[1749741387068,0.72259,2767.3,2767.1,0.60172035]
[1749741387369,0.72259,2767.3,2767.2,0.72258]
[1749741387760,0.7226,2767.2,2767.1,1.32433035]
[1749741388365,0.7226,2767.3,2767.2,0.72258]
[1749741389570,0.7226,2767.2,2767.1,1.32432035]
[1749741389870,6.62956,2767.4,2767.3,0.72257]
[1749741390072,5.907,2767.4,2767.3,0.72257]
[1749741390268,3.93033,2767.5,2767.4,0.72255]
[1749741390568,0.72257,2767.4,2767.3,0.72256]
[1749741392574,9.1158,2767.5,2767.2,1.2791]
[1749741392575,0.72257,2767.3,2767.2,2.00168]
[1749741392768,0.7226,2767.2,2767.1,0.00542035]
[1749741392974,3.9304,2767.2,2767.1,0.00542035]
[1749741394671,0.72273,2766.7,2766.6,0.6364]
[1749741394867,10.92362,2766.8,2766.2,1.33514]
[1749741395071,0.72284,2766.3,2766.2,1.33514]
[1749741395274,3.2078,2766.4,2766.3,0.72284]
[1749741395478,3.93061,2766.4,2766.3,2.0444572]
[1749741396080,3.93061,2766.4,2766.3,0.0620172]
[1749741396282,9.83961,2766.4,2766.3,0.0620172]